[Event "Early-Titled-Tuesday-Blitz-April-02-2024"]
[Site "Chess.com"]
[Date "2024.04.02"]
[Round "1"]
[White "Rashad_Zeynalli"]
[Black "KorolDimitriy75"]
[Result "1-0"]
[WhiteElo "2680"]
[BlackElo "2389"]
[TimeControl "180+1"]
[EndTime "8:06:28 PDT"]
[Termination "Rashad_Zeynalli won on time"]

1. d4 {[%clk 0:03:00.9]} 1... Nf6 {[%clk 0:02:59.6]} 2. Bf4 {[%clk 0:03:01.5]}
2... c5 {[%clk 0:02:59.6]} 3. d5 {[%clk 0:03:02.1]} 3... Qb6 {[%clk 0:02:59.5]}
4. Nc3 {[%clk 0:03:01.1]} 4... Qxb2 {[%clk 0:02:58.9]} 5. Bd2 {[%clk 0:03:01.6]}
5... Qb6 {[%clk 0:02:57.7]} 6. e4 {[%clk 0:02:59.8]} 6... d6 {[%clk 0:02:57.6]}
7. Nf3 {[%clk 0:02:57.6]} 7... g6 {[%clk 0:02:46.6]} 8. Bc4 {[%clk 0:02:53]}
8... Bg7 {[%clk 0:02:46.1]} 9. h3 {[%clk 0:02:53.6]} 9... O-O {[%clk 0:02:45.7]}
10. O-O {[%clk 0:02:54.2]} 10... a6 {[%clk 0:02:32.3]} 11. Re1 {[%clk
0:02:52.1]} 11... Nbd7 {[%clk 0:02:28.7]} 12. Qc1 {[%clk 0:02:47.7]} 12... Qc7
{[%clk 0:02:09.3]} 13. a4 {[%clk 0:02:46.1]} 13... Rb8 {[%clk 0:01:35.5]} 14.
Bh6 {[%clk 0:02:41.6]} 14... Qa5 {[%clk 0:01:27.4]} 15. Bd2 {[%clk 0:02:39.2]}
15... Ne8 {[%clk 0:01:13.7]} 16. Ra3 {[%clk 0:02:33.5]} 16... Qd8 {[%clk
0:01:00]} 17. Bf4 {[%clk 0:02:30.1]} 17... Qa5 {[%clk 0:00:55.7]} 18. Bd2 {[%clk
0:02:24.9]} 18... Qd8 {[%clk 0:00:55.2]} 19. Bg5 {[%clk 0:02:21.2]} 19... Nc7
{[%clk 0:00:47.9]} 20. a5 {[%clk 0:02:19.1]} 20... b5 {[%clk 0:00:40.1]} 21.
axb6 {[%clk 0:02:19]} 21... Rxb6 {[%clk 0:00:40.5]} 22. Bh6 {[%clk 0:02:13.6]}
22... Rb4 {[%clk 0:00:38.9]} 23. Bf1 {[%clk 0:02:08.5]} 23... Bb7 {[%clk
0:00:20.3]} 24. Rd1 {[%clk 0:01:53.5]} 24... Qb8 {[%clk 0:00:17.8]} 25. h4
{[%clk 0:01:47.6]} 25... Nf6 {[%clk 0:00:15.4]} 26. Re1 {[%clk 0:01:40.8]} 26...
Re8 {[%clk 0:00:13.9]} 27. Bxg7 {[%clk 0:01:39.9]} 27... Kxg7 {[%clk 0:00:14.8]}
28. Bd3 {[%clk 0:01:34.5]} 28... e6 {[%clk 0:00:14.7]} 29. e5 {[%clk 0:01:32.7]}
29... dxe5 {[%clk 0:00:11.7]} 30. d6 {[%clk 0:01:33.6]} 30... Ncd5 {[%clk
0:00:10.6]} 31. Nxd5 {[%clk 0:01:27.4]} 31... exd5 {[%clk 0:00:11.5]} 32. Bxa6
{[%clk 0:01:22.5]} 32... Bc6 {[%clk 0:00:10.6]} 33. Nxe5 {[%clk 0:01:15]} 33...
Qxd6 {[%clk 0:00:08.1]} 34. Rae3 {[%clk 0:01:14.2]} 34... Re4 {[%clk 0:00:07.3]}
35. Rxe4 {[%clk 0:01:12.5]} 35... Nxe4 {[%clk 0:00:04.5]} 36. Qa1 {[%clk
0:01:03.1]} 1-0

[Event "Early-Titled-Tuesday-Blitz-April-02-2024"]
[Site "Chess.com"]
[Date "2024.04.02"]
[Round "1"]
[White "newauto"]
[Black "TERMINATOR_PC"]
[Result "0-1"]
[WhiteElo "2212"]
[BlackElo "2597"]
[TimeControl "180+1"]
[EndTime "8:06:28 PDT"]
[Termination "TERMINATOR_PC won by resignation"]

1. d4 {[%clk 0:02:59]} 1... Nf6 {[%clk 0:02:55.2]} 2. Nf3 {[%clk 0:02:59.9]}
2... e6 {[%clk 0:02:51.9]} 3. Bg5 {[%clk 0:02:59.6]} 3... d5 {[%clk 0:02:50.9]}
4. Nbd2 {[%clk 0:02:59.8]} 4... c5 {[%clk 0:02:50.3]} 5. e3 {[%clk 0:02:59.9]}
5... Nc6 {[%clk 0:02:50.1]} 6. c3 {[%clk 0:02:59.7]} 6... Bd6 {[%clk 0:02:50.1]}
7. Bd3 {[%clk 0:02:59.6]} 7... h6 {[%clk 0:02:50.4]} 8. Bh4 {[%clk 0:02:59.7]}
8... b6 {[%clk 0:02:45.7]} 9. O-O {[%clk 0:02:59.3]} 9... Bb7 {[%clk 0:02:45.4]}
10. Re1 {[%clk 0:02:58.2]} 10... g5 {[%clk 0:02:37.5]} 11. Bg3 {[%clk
0:02:57.6]} 11... Bxg3 {[%clk 0:02:36.9]} 12. hxg3 {[%clk 0:02:58.5]} 12... cxd4
{[%clk 0:02:35.5]} 13. cxd4 {[%clk 0:02:52]} 13... Qd6 {[%clk 0:02:33.5]} 14.
Rc1 {[%clk 0:02:50.5]} 14... g4 {[%clk 0:02:27.7]} 15. Ne5 {[%clk 0:02:47.2]}
15... Nxe5 {[%clk 0:02:26.4]} 16. dxe5 {[%clk 0:02:48.1]} 16... Qxe5 {[%clk
0:02:26.2]} 17. Bb5+ {[%clk 0:02:44]} 17... Kf8 {[%clk 0:02:23.4]} 18. Qa4
{[%clk 0:02:14.1]} 18... Kg8 {[%clk 0:02:24.3]} 19. Bc6 {[%clk 0:01:56.9]} 19...
Bxc6 {[%clk 0:02:23]} 20. Rxc6 {[%clk 0:01:52.8]} 20... Kg7 {[%clk 0:02:22.8]}
21. Rec1 {[%clk 0:01:52.2]} 21... Qxb2 {[%clk 0:02:18.7]} 22. Nb3 {[%clk
0:01:49.9]} 22... Ne4 {[%clk 0:02:13.7]} 23. R6c2 {[%clk 0:01:49.5]} 23... Qe5
{[%clk 0:02:09.3]} 24. Nd4 {[%clk 0:01:48.3]} 24... h5 {[%clk 0:02:06.8]} 25.
Rc7 {[%clk 0:01:38.5]} 25... Nc5 {[%clk 0:01:52.4]} 26. Qc6 {[%clk 0:01:32.7]}
26... Rh6 {[%clk 0:01:25.7]} 27. Nb5 {[%clk 0:01:09.2]} 27... Rf8 {[%clk
0:01:19.1]} 28. Rxa7 {[%clk 0:01:05.2]} 28... h4 {[%clk 0:01:19.2]} 29. gxh4
{[%clk 0:01:03.2]} 29... Rxh4 {[%clk 0:01:17.7]} 30. g3 {[%clk 0:01:02.8]} 30...
Rh3 {[%clk 0:01:18.3]} 31. Nd6 {[%clk 0:00:41.4]} 31... Qh5 {[%clk 0:00:57]} 32.
Kf1 {[%clk 0:00:24.2]} 32... Rh1+ {[%clk 0:00:56.9]} 33. Ke2 {[%clk 0:00:24.5]}
33... Rxc1 {[%clk 0:00:57.6]} 34. Qxb6 {[%clk 0:00:21.9]} 34... Rc2+ {[%clk
0:00:51.8]} 35. Kd1 {[%clk 0:00:19.9]} 35... Rxf2 {[%clk 0:00:51.3]} 0-1

[Event "Early-Titled-Tuesday-Blitz-April-02-2024"]
[Site "Chess.com"]
[Date "2024.04.02"]
[Round "1"]
[White "luckyswitchback"]
[Black "RamonManon0g"]
[Result "1-0"]
[WhiteElo "2714"]
[BlackElo "2403"]
[TimeControl "180+1"]
[EndTime "8:06:30 PDT"]
[Termination "luckyswitchback won by resignation"]

1. e4 {[%clk 0:03:00.9]} 1... c5 {[%clk 0:02:59.4]} 2. Nf3 {[%clk 0:03:00.5]}
2... d6 {[%clk 0:02:59.7]} 3. Bb5+ {[%clk 0:02:59.7]} 3... Nd7 {[%clk
0:02:59.3]} 4. a4 {[%clk 0:02:59]} 4... a6 {[%clk 0:02:59.8]} 5. Be2 {[%clk
0:02:58.9]} 5... Ngf6 {[%clk 0:03:00.2]} 6. Nc3 {[%clk 0:02:58.9]} 6... e5
{[%clk 0:02:58.3]} 7. a5 {[%clk 0:02:54.5]} 7... Be7 {[%clk 0:02:57.7]} 8. O-O
{[%clk 0:02:51]} 8... O-O {[%clk 0:02:57.9]} 9. d3 {[%clk 0:02:24.2]} 9... b5
{[%clk 0:02:53.5]} 10. axb6 {[%clk 0:02:23.9]} 10... Nxb6 {[%clk 0:02:53.8]} 11.
b3 {[%clk 0:02:19.5]} 11... a5 {[%clk 0:02:53.3]} 12. Nd2 {[%clk 0:02:03.2]}
12... Bd7 {[%clk 0:02:49.7]} 13. f4 {[%clk 0:02:01.7]} 13... exf4 {[%clk
0:02:46.9]} 14. Nf3 {[%clk 0:02:00.5]} 14... d5 {[%clk 0:02:40.6]} 15. e5 {[%clk
0:01:53.6]} 15... Ng4 {[%clk 0:02:30.5]} 16. Bxf4 {[%clk 0:01:53]} 16... d4
{[%clk 0:02:31]} 17. Ne4 {[%clk 0:01:49.4]} 17... Nd5 {[%clk 0:02:31.3]} 18. Qd2
{[%clk 0:01:47.3]} 18... Nxf4 {[%clk 0:02:20.2]} 19. Qxf4 {[%clk 0:01:47]} 19...
Ne3 {[%clk 0:02:21.1]} 20. Rfc1 {[%clk 0:01:46.5]} 20... a4 {[%clk 0:02:13.8]}
21. bxa4 {[%clk 0:01:45.1]} 21... Bxa4 {[%clk 0:02:14.7]} 22. c3 {[%clk
0:01:35.8]} 22... h6 {[%clk 0:01:53.6]} 23. cxd4 {[%clk 0:01:30.2]} 23... cxd4
{[%clk 0:01:54.5]} 24. Nd6 {[%clk 0:01:28]} 24... Bg5 {[%clk 0:01:37.8]} 25.
Nxg5 {[%clk 0:01:23.2]} 25... Qxg5 {[%clk 0:01:38.7]} 26. Qxg5 {[%clk
0:01:18.8]} 26... hxg5 {[%clk 0:01:39.6]} 27. Bf3 {[%clk 0:01:15.3]} 27... Ra5
{[%clk 0:01:39]} 28. Nc4 {[%clk 0:01:10.2]} 28... Ra7 {[%clk 0:00:52.4]} 29.
Nxe3 {[%clk 0:01:04.6]} 29... dxe3 {[%clk 0:00:53.3]} 30. Rc4 {[%clk 0:00:55.2]}
30... g4 {[%clk 0:00:48.2]} 31. Rxg4 {[%clk 0:00:51.8]} 31... Rb8 {[%clk
0:00:31]} 32. h4 {[%clk 0:00:43.5]} 32... Rd7 {[%clk 0:00:22.3]} 33. Rgxa4
{[%clk 0:00:40.9]} 33... Rxd3 {[%clk 0:00:23.2]} 34. Ra8 {[%clk 0:00:40.3]}
34... Rxa8 {[%clk 0:00:23.1]} 35. Rxa8+ {[%clk 0:00:41.2]} 35... Kh7 {[%clk
0:00:23.8]} 36. Be4+ {[%clk 0:00:41.6]} 1-0

[Event "Early-Titled-Tuesday-Blitz-April-02-2024"]
[Site "Chess.com"]
[Date "2024.04.02"]
[Round "1"]
[White "PapaieDudu"]
[Black "IMRosen"]
[Result "0-1"]
[WhiteElo "2397"]
[BlackElo "2696"]
[TimeControl "180+1"]
[EndTime "8:06:30 PDT"]
[Termination "IMRosen won by resignation"]

1. Nf3 {[%clk 0:03:00.9]} 1... d5 {[%clk 0:02:55.6]} 2. d4 {[%clk 0:03:01]} 2...
Nf6 {[%clk 0:02:55.3]} 3. c4 {[%clk 0:03:01.2]} 3... e6 {[%clk 0:02:55.3]} 4.
Nc3 {[%clk 0:03:01.7]} 4... Nbd7 {[%clk 0:02:55]} 5. Bg5 {[%clk 0:03:01.4]} 5...
c6 {[%clk 0:02:55]} 6. e3 {[%clk 0:03:01.5]} 6... Qa5 {[%clk 0:02:55]} 7. Nd2
{[%clk 0:03:01.2]} 7... Bb4 {[%clk 0:02:54.2]} 8. Qc2 {[%clk 0:03:00.3]} 8...
Ne4 {[%clk 0:02:44]} 9. Ndxe4 {[%clk 0:02:55.4]} 9... dxe4 {[%clk 0:02:42.3]}
10. Bf4 {[%clk 0:02:54.5]} 10... e5 {[%clk 0:02:28.9]} 11. dxe5 {[%clk
0:02:40.4]} 11... Nxe5 {[%clk 0:02:27.9]} 12. Be2 {[%clk 0:02:40]} 12... Bxc3+
{[%clk 0:02:19.9]} 13. bxc3 {[%clk 0:02:32.4]} 13... Bf5 {[%clk 0:02:15.8]} 14.
O-O {[%clk 0:02:28.7]} 14... O-O {[%clk 0:02:15.2]} 15. Rab1 {[%clk 0:02:27.1]}
15... b6 {[%clk 0:02:10.4]} 16. Rfd1 {[%clk 0:01:51.5]} 16... Rad8 {[%clk
0:01:57.8]} 17. Bg5 {[%clk 0:01:45.6]} 17... f6 {[%clk 0:01:57.1]} 18. Bf4
{[%clk 0:01:44.3]} 18... Qc5 {[%clk 0:01:56.7]} 19. Rd4 {[%clk 0:01:43.2]} 19...
Nd3 {[%clk 0:01:30.1]} 20. Bg3 {[%clk 0:01:42.3]} 20... Qe7 {[%clk 0:01:22]} 21.
Rd1 {[%clk 0:01:23.7]} 21... c5 {[%clk 0:01:19.5]} 22. Rd5 {[%clk 0:01:23]}
22... Rxd5 {[%clk 0:01:12]} 23. cxd5 {[%clk 0:01:22.5]} 23... c4 {[%clk
0:01:12.9]} 24. Qa4 {[%clk 0:01:20.5]} 24... Rc8 {[%clk 0:00:49.8]} 25. d6
{[%clk 0:01:18.8]} 25... Qf7 {[%clk 0:00:46.1]} 26. f3 {[%clk 0:00:57.4]} 26...
Qd7 {[%clk 0:00:45.4]} 27. fxe4 {[%clk 0:00:50.2]} 27... Qxa4 {[%clk 0:00:43.6]}
28. exf5 {[%clk 0:00:47.4]} 28... Qb5 {[%clk 0:00:42]} 29. e4 {[%clk 0:00:45.3]}
29... Qc5+ {[%clk 0:00:38.8]} 30. Kf1 {[%clk 0:00:44.8]} 30... Rd8 {[%clk
0:00:37.8]} 31. Bxd3 {[%clk 0:00:41.7]} 31... cxd3 {[%clk 0:00:37.7]} 32. Rxd3
{[%clk 0:00:42.4]} 32... Qc4 {[%clk 0:00:38.1]} 33. Ke2 {[%clk 0:00:40.1]} 33...
Qxe4+ {[%clk 0:00:36.7]} 34. Kd2 {[%clk 0:00:38.5]} 34... Qxg2+ {[%clk
0:00:36.4]} 35. Kc1 {[%clk 0:00:37.2]} 35... Qf1+ {[%clk 0:00:34.6]} 36. Kc2
{[%clk 0:00:37.6]} 36... Qxf5 {[%clk 0:00:34.3]} 37. Kd2 {[%clk 0:00:38]} 37...
h6 {[%clk 0:00:33.5]} 38. c4 {[%clk 0:00:37.7]} 38... h5 {[%clk 0:00:33.4]} 0-1

[Event "Early-Titled-Tuesday-Blitz-April-02-2024"]
[Site "Chess.com"]
[Date "2024.04.02"]
[Round "1"]
[White "WilsonPalencia21"]
[Black "carloseduar100"]
[Result "1-0"]
[WhiteElo "2587"]
[BlackElo "2191"]
[TimeControl "180+1"]
[EndTime "8:06:34 PDT"]
[Termination "WilsonPalencia21 won by resignation"]

1. d4 {[%clk 0:02:58]} 1... d5 {[%clk 0:02:59.1]} 2. c4 {[%clk 0:02:58.2]} 2...
e5 {[%clk 0:02:53.5]} 3. dxe5 {[%clk 0:02:59.1]} 3... d4 {[%clk 0:02:48.5]} 4.
Nf3 {[%clk 0:02:59.3]} 4... Nc6 {[%clk 0:02:48.5]} 5. g3 {[%clk 0:02:59.5]} 5...
Bg4 {[%clk 0:02:48.4]} 6. Bg2 {[%clk 0:02:59.8]} 6... Qd7 {[%clk 0:02:48]} 7. h3
{[%clk 0:02:59.8]} 7... Bh5 {[%clk 0:02:26.8]} 8. O-O {[%clk 0:02:51.3]} 8...
O-O-O {[%clk 0:02:24.5]} 9. Nbd2 {[%clk 0:02:49.4]} 9... f6 {[%clk 0:02:24.7]}
10. exf6 {[%clk 0:02:35.6]} 10... Nxf6 {[%clk 0:02:24.9]} 11. Nb3 {[%clk
0:02:19.1]} 11... d3 {[%clk 0:02:17.7]} 12. exd3 {[%clk 0:02:16.7]} 12... Qxd3
{[%clk 0:02:17.6]} 13. Qxd3 {[%clk 0:02:16.1]} 13... Rxd3 {[%clk 0:02:18.5]} 14.
Be3 {[%clk 0:02:13.1]} 14... Bd6 {[%clk 0:02:06.5]} 15. Rfd1 {[%clk 0:02:09.6]}
15... Rxe3 {[%clk 0:02:04.4]} 16. fxe3 {[%clk 0:01:57.4]} 16... Bxg3 {[%clk
0:02:04.7]} 17. Nbd4 {[%clk 0:01:47.8]} 17... Ne5 {[%clk 0:01:55.2]} 18. Rf1
{[%clk 0:01:03.5]} 18... Nxc4 {[%clk 0:01:53.9]} 19. Nf5 {[%clk 0:01:03.7]}
19... Be5 {[%clk 0:01:46.3]} 20. Nxe5 {[%clk 0:01:01.4]} 20... Nxe5 {[%clk
0:01:46.6]} 21. Nxg7 {[%clk 0:01:01.4]} 21... Ned7 {[%clk 0:01:35]} 22. Nxh5
{[%clk 0:00:48.1]} 22... Nxh5 {[%clk 0:01:05.7]} 23. Rf7 {[%clk 0:00:48.4]}
23... Ne5 {[%clk 0:01:00.6]} 24. Rf5 {[%clk 0:00:47.9]} 24... Nc4 {[%clk
0:00:49.6]} 25. Rxh5 {[%clk 0:00:47.1]} 25... Nxe3 {[%clk 0:00:49.9]} 26. Bf3
{[%clk 0:00:44.3]} 26... Rf8 {[%clk 0:00:48.2]} 27. Bg4+ {[%clk 0:00:43]} 27...
Kb8 {[%clk 0:00:47.7]} 28. Re1 {[%clk 0:00:41.9]} 28... Nc4 {[%clk 0:00:47.1]}
29. b3 {[%clk 0:00:41.4]} 29... Nd2 {[%clk 0:00:46.2]} 30. Re7 {[%clk 0:00:40]}
1-0

[Event "Early-Titled-Tuesday-Blitz-April-02-2024"]
[Site "Chess.com"]
[Date "2024.04.02"]
[Round "1"]
[White "ReadySkate"]
[Black "Sofia_Blokhin"]
[Result "1-0"]
[WhiteElo "2601"]
[BlackElo "2228"]
[TimeControl "180+1"]
[EndTime "8:06:35 PDT"]
[Termination "ReadySkate won on time"]

1. d4 {[%clk 0:03:00.9]} 1... f5 {[%clk 0:02:59.2]} 2. Nc3 {[%clk 0:03:00.2]}
2... Nf6 {[%clk 0:02:58.8]} 3. Bg5 {[%clk 0:03:00.1]} 3... e6 {[%clk 0:02:54]}
4. e4 {[%clk 0:02:59.2]} 4... fxe4 {[%clk 0:02:52.6]} 5. Nxe4 {[%clk 0:03:00.1]}
5... Be7 {[%clk 0:02:53]} 6. Bxf6 {[%clk 0:02:59.6]} 6... Bxf6 {[%clk
0:02:52.8]} 7. Qh5+ {[%clk 0:03:00.1]} 7... g6 {[%clk 0:02:50.9]} 8. Qh6 {[%clk
0:03:00.8]} 8... d5 {[%clk 0:02:43.1]} 9. Nxf6+ {[%clk 0:03:00]} 9... Qxf6
{[%clk 0:02:43.6]} 10. Nf3 {[%clk 0:03:00.9]} 10... Nc6 {[%clk 0:02:33.2]} 11.
O-O-O {[%clk 0:02:59.5]} 11... Bd7 {[%clk 0:02:30.7]} 12. h4 {[%clk 0:02:58.7]}
12... O-O-O {[%clk 0:02:26.6]} 13. h5 {[%clk 0:02:58.3]} 13... Rdf8 {[%clk
0:01:56.9]} 14. c3 {[%clk 0:02:54.8]} 14... a6 {[%clk 0:01:47.3]} 15. Bd3 {[%clk
0:02:53.2]} 15... Be8 {[%clk 0:01:39.8]} 16. Rde1 {[%clk 0:02:40]} 16... gxh5
{[%clk 0:01:34.3]} 17. Rxe6 {[%clk 0:02:37.5]} 17... Qxh6+ {[%clk 0:01:24.7]}
18. Rxh6 {[%clk 0:02:37.6]} 18... Bg6 {[%clk 0:01:08.4]} 19. Bxg6 {[%clk
0:02:34.3]} 19... hxg6 {[%clk 0:01:09.3]} 20. Rxg6 {[%clk 0:02:35.2]} 20... Rhg8
{[%clk 0:01:07.1]} 21. Rxg8 {[%clk 0:02:33.3]} 21... Rxg8 {[%clk 0:01:08]} 22.
Nh4 {[%clk 0:02:22]} 22... Ne7 {[%clk 0:01:02.9]} 23. f3 {[%clk 0:02:20.5]}
23... c6 {[%clk 0:00:52.6]} 24. Kd2 {[%clk 0:02:11.5]} 24... Ng6 {[%clk
0:00:49]} 25. Nf5 {[%clk 0:02:10.8]} 25... h4 {[%clk 0:00:38.5]} 26. Rxh4 {[%clk
0:02:06.7]} 26... Nxh4 {[%clk 0:00:23.4]} 27. Ne7+ {[%clk 0:02:05.8]} 27... Kd7
{[%clk 0:00:23.4]} 28. Nxg8 {[%clk 0:02:06.7]} 28... Nxg2 {[%clk 0:00:19.4]} 29.
Nf6+ {[%clk 0:02:07.1]} 29... Ke6 {[%clk 0:00:17.7]} 30. Nh5 {[%clk 0:02:07.4]}
30... Nh4 {[%clk 0:00:16]} 31. Ke3 {[%clk 0:02:06.1]} 31... Nf5+ {[%clk
0:00:13.4]} 32. Kf4 {[%clk 0:02:05.7]} 32... Nd6 {[%clk 0:00:12.2]} 33. Ng7+
{[%clk 0:02:05]} 33... Kd7 {[%clk 0:00:10.8]} 34. Nf5 {[%clk 0:01:57.8]} 34...
Nc4 {[%clk 0:00:10.9]} 35. b3 {[%clk 0:01:58]} 35... Nd2 {[%clk 0:00:06.8]} 36.
Ke3 {[%clk 0:01:52.3]} 36... Nb1 {[%clk 0:00:07]} 37. Kd3 {[%clk 0:01:52]} 37...
Na3 {[%clk 0:00:06.6]} 38. Ne3 {[%clk 0:01:49.9]} 38... Nb5 {[%clk 0:00:06.4]}
39. a4 {[%clk 0:01:49.7]} 39... Nd6 {[%clk 0:00:06.7]} 40. Ng4 {[%clk
0:01:48.4]} 40... Ke6 {[%clk 0:00:06.1]} 41. Ne5 {[%clk 0:01:47.8]} 41... Kf5
{[%clk 0:00:06]} 42. c4 {[%clk 0:01:45.3]} 42... dxc4+ {[%clk 0:00:05]} 43. bxc4
{[%clk 0:01:46.2]} 43... Kf4 {[%clk 0:00:04.8]} 44. c5 {[%clk 0:01:43.8]} 44...
Nf5 {[%clk 0:00:04.2]} 45. Nc4 {[%clk 0:01:40.7]} 45... Ne7 {[%clk 0:00:03.8]}
46. Nd6 {[%clk 0:01:40.2]} 46... Kxf3 {[%clk 0:00:03.3]} 47. Nxb7 {[%clk
0:01:40.3]} 47... Nd5 {[%clk 0:00:03.6]} 48. Na5 {[%clk 0:01:39.5]} 48... Nb4+
{[%clk 0:00:03.7]} 49. Kc4 {[%clk 0:01:39.5]} 49... Nc2 {[%clk 0:00:01.4]} 50.
Nxc6 {[%clk 0:01:39.6]} 1-0

[Event "Early-Titled-Tuesday-Blitz-April-02-2024"]
[Site "Chess.com"]
[Date "2024.04.02"]
[Round "1"]
[White "GMAkobianSTL"]
[Black "Vse_po_kaify"]
[Result "0-1"]
[WhiteElo "2773"]
[BlackElo "2484"]
[TimeControl "180+1"]
[EndTime "8:06:39 PDT"]
[Termination "Vse_po_kaify won on time"]

1. d4 {[%clk 0:03:00.9]} 1... Nf6 {[%clk 0:02:59.6]} 2. c4 {[%clk 0:03:00.3]}
2... e6 {[%clk 0:02:59.7]} 3. Nf3 {[%clk 0:03:00.2]} 3... Bb4+ {[%clk
0:02:59.9]} 4. Bd2 {[%clk 0:02:58.4]} 4... Qe7 {[%clk 0:02:59.9]} 5. Nc3 {[%clk
0:02:57.5]} 5... Nc6 {[%clk 0:02:57.1]} 6. e3 {[%clk 0:02:57.3]} 6... O-O {[%clk
0:02:52.9]} 7. Bd3 {[%clk 0:02:55.4]} 7... e5 {[%clk 0:02:52.1]} 8. dxe5 {[%clk
0:02:40.4]} 8... Nxe5 {[%clk 0:02:51.5]} 9. Nxe5 {[%clk 0:02:40.5]} 9... Qxe5
{[%clk 0:02:51.2]} 10. Qc2 {[%clk 0:02:39.6]} 10... d6 {[%clk 0:02:46.9]} 11. a3
{[%clk 0:02:35.7]} 11... Ba5 {[%clk 0:02:41.3]} 12. O-O-O {[%clk 0:02:34.2]}
12... a6 {[%clk 0:02:37.5]} 13. f4 {[%clk 0:02:33.5]} 13... Qe7 {[%clk
0:02:33.3]} 14. e4 {[%clk 0:02:33.6]} 14... c6 {[%clk 0:02:30.5]} 15. Rde1
{[%clk 0:02:32.7]} 15... h6 {[%clk 0:02:29.2]} 16. h3 {[%clk 0:02:32.4]} 16...
b5 {[%clk 0:02:28.2]} 17. g4 {[%clk 0:02:18.9]} 17... Nd7 {[%clk 0:02:25.9]} 18.
h4 {[%clk 0:02:10]} 18... Nc5 {[%clk 0:02:21.8]} 19. g5 {[%clk 0:02:07.1]} 19...
h5 {[%clk 0:02:18.5]} 20. f5 {[%clk 0:02:00.5]} 20... Nxd3+ {[%clk 0:02:13]} 21.
Qxd3 {[%clk 0:02:00]} 21... bxc4 {[%clk 0:02:12.1]} 22. Qxc4 {[%clk 0:01:58.7]}
22... Qe5 {[%clk 0:02:06.5]} 23. Rhf1 {[%clk 0:01:57.6]} 23... Rb8 {[%clk
0:02:02.7]} 24. Bf4 {[%clk 0:01:55.9]} 24... Qe7 {[%clk 0:02:00.2]} 25. f6
{[%clk 0:01:48]} 25... Qb7 {[%clk 0:01:42.8]} 26. b4 {[%clk 0:01:47.3]} 26...
Be6 {[%clk 0:01:41]} 27. Qd3 {[%clk 0:01:39.6]} 27... g6 {[%clk 0:01:40.2]} 28.
Bxd6 {[%clk 0:01:21.8]} 28... Rfd8 {[%clk 0:01:35.9]} 29. Qg3 {[%clk 0:01:12.1]}
29... c5 {[%clk 0:01:29.3]} 30. Bxc5 {[%clk 0:00:58.9]} 30... Bc7 {[%clk
0:01:27.3]} 31. Qe3 {[%clk 0:00:51]} 31... a5 {[%clk 0:01:27.4]} 32. Rd1 {[%clk
0:00:48]} 32... axb4 {[%clk 0:01:27.2]} 33. Rxd8+ {[%clk 0:00:45.4]} 33... Rxd8
{[%clk 0:01:26.7]} 34. axb4 {[%clk 0:00:44.8]} 34... Qa6 {[%clk 0:01:22.5]} 35.
Rd1 {[%clk 0:00:31.9]} 35... Ra8 {[%clk 0:01:12.4]} 36. Kd2 {[%clk 0:00:27.2]}
36... Qc4 {[%clk 0:01:08.7]} 37. Qd3 {[%clk 0:00:18]} 37... Rd8 {[%clk
0:00:56.9]} 0-1

[Event "Early-Titled-Tuesday-Blitz-April-02-2024"]
[Site "Chess.com"]
[Date "2024.04.02"]
[Round "1"]
[White "Bauman_Guy"]
[Black "savitha1030"]
[Result "1-0"]
[WhiteElo "2901"]
[BlackElo "2510"]
[TimeControl "180+1"]
[EndTime "8:06:47 PDT"]
[Termination "Bauman_Guy won by resignation"]

1. e4 {[%clk 0:03:00.9]} 1... c5 {[%clk 0:02:47.4]} 2. Nf3 {[%clk 0:02:59.9]}
2... e6 {[%clk 0:02:47.4]} 3. d4 {[%clk 0:02:58.1]} 3... cxd4 {[%clk 0:02:48.3]}
4. Nxd4 {[%clk 0:02:59]} 4... Nc6 {[%clk 0:02:48.8]} 5. Nc3 {[%clk 0:02:58.4]}
5... a6 {[%clk 0:02:47.8]} 6. g3 {[%clk 0:02:56.6]} 6... Qc7 {[%clk 0:02:48.3]}
7. Bg2 {[%clk 0:02:56.6]} 7... b5 {[%clk 0:02:49]} 8. O-O {[%clk 0:02:51.3]}
8... Bb7 {[%clk 0:02:49.1]} 9. Re1 {[%clk 0:02:51.1]} 9... Bc5 {[%clk
0:02:46.6]} 10. Be3 {[%clk 0:02:37.8]} 10... Nxd4 {[%clk 0:02:13.4]} 11. Bxd4
{[%clk 0:02:38.7]} 11... Bxd4 {[%clk 0:02:11.5]} 12. Qxd4 {[%clk 0:02:39.6]}
12... e5 {[%clk 0:02:12.2]} 13. Qb4 {[%clk 0:02:34.5]} 13... Nf6 {[%clk
0:02:01.4]} 14. a4 {[%clk 0:02:33.2]} 14... bxa4 {[%clk 0:01:59]} 15. Rxa4
{[%clk 0:02:26.2]} 15... d6 {[%clk 0:01:52.4]} 16. Rd1 {[%clk 0:01:54.6]} 16...
Rd8 {[%clk 0:01:52.1]} 17. Qb3 {[%clk 0:01:49.3]} 17... O-O {[%clk 0:01:47.8]}
18. Rc4 {[%clk 0:01:49.4]} 18... Qe7 {[%clk 0:01:47.4]} 19. Rb4 {[%clk
0:01:49.7]} 19... Ba8 {[%clk 0:01:46.5]} 20. Rb6 {[%clk 0:01:49.5]} 20... a5
{[%clk 0:01:37.1]} 21. Qa3 {[%clk 0:01:47.4]} 21... Qa7 {[%clk 0:01:06.8]} 22.
Rdxd6 {[%clk 0:01:38.5]} 22... Rxd6 {[%clk 0:00:50.5]} 23. Qxd6 {[%clk 0:01:38]}
23... Ne8 {[%clk 0:00:42.3]} 24. Qb8 {[%clk 0:01:25]} 24... Qc7 {[%clk
0:00:33.9]} 25. Qxc7 {[%clk 0:01:14]} 25... Nxc7 {[%clk 0:00:34.8]} 26. Nd5
{[%clk 0:01:14.7]} 26... Ne6 {[%clk 0:00:29.9]} 27. Ra6 {[%clk 0:01:09.4]} 27...
Nd4 {[%clk 0:00:30.3]} 28. c3 {[%clk 0:01:08.4]} 28... Nb3 {[%clk 0:00:30.9]}
29. Rb6 {[%clk 0:00:59.8]} 29... Nc1 {[%clk 0:00:24.4]} 30. Bf1 {[%clk 0:00:56]}
30... h5 {[%clk 0:00:20.6]} 31. Bc4 {[%clk 0:00:50.5]} 31... Kh7 {[%clk
0:00:15.4]} 32. Ra6 {[%clk 0:00:38.5]} 32... Rc8 {[%clk 0:00:15.3]} 33. Bf1
{[%clk 0:00:33.6]} 33... Rc5 {[%clk 0:00:14.9]} 34. Rxa8 {[%clk 0:00:32.6]} 1-0